[Event "Klatovy Open-C 2024"]
[Site "Klatovy"]
[Date "2024.06.29"]
[Round "1.10"]
[White "Hlavac, Rudolf"]
[Black "Rezny, Frantisek"]
[Result "1-0"]
[ECO "C44"]
[WhiteElo "1927"]
[BlackElo "1687"]
[Annotator "NA RC"]
[PlyCount "75"]
[EventDate "2024.06.21"]
[EventType "swiss"]
[EventCountry "CZE"]
[SourceTitle "playchess.com"]
[Source "ChessBase"]
[SourceQuality "1"]
[TimeControl "40/7200:0"]

1. e4 {[%emt 0:02:33]} e5 {[%emt 0:00:00]} 2. Nf3 {[%emt 0:00:15]} Nc6 {[%emt 0:00:00]} 3. c3 {[%emt 0:00:00]} d6 {[%emt 0:00:49]} 4. d4 {[%emt 0:00:00]} exd4 {[%emt 0:00:00]} 5. cxd4 {[%emt 0:00:00]} Be7 {[%emt 0:00:00]} 6. Nc3 {[%emt 0:00:00]} Nf6 {[%emt 0:00:00]} 7. h3 {[%emt 0:00:56]} O-O {[%emt 0:00:00]} 8. Bd3 {[%emt 0:00:49]} a6 {[%emt 0:00:10]} 9. a4 {[%emt 0:01:18]} Re8 {[%emt 0:01:09]} 10. O-O {[%emt 0:01:47]} h6 {[%emt 0:00:58]} 11. Bf4 {[%emt 0:00:42]} Bd7 {[%emt 0:01:47]} 12. Rc1 {[%emt 0:02:42]} Rc8 {[%emt 0:00:48]} 13. Re1 {[%emt 0:01:13]} Nh7 {[%emt 0:03:10]} 14. d5 {[%emt 0:02:07]} Nb4 {[%emt 0:00:09]} 15. e5 {[%emt 0:05:34]} Nxd3 {[%emt 0:02:04]} 16. Qxd3 {[%emt 0:00:00]} dxe5 {[%emt 0:00:41]} 17. Nxe5 {[%emt 0:00:00]} Bg5 {[%emt 0:03:19]} 18. Bxg5 {[%emt 0:04:34]} Nxg5 {[%emt 0:00:00]} 19. h4 {[%emt 0:00:00]} Nh7 {[%emt 0:00:00]} 20. d6 {[%emt 0:13:04]} cxd6 {[%emt 0:03:00]} 21. Nxf7 {[%emt 0:01:34]} Rxe1+ {[%emt 0:00:19]} 22. Rxe1 {[%emt 0:00:00]} Qxh4 {[%emt 0:04:58]} 23. Nxd6 {[%emt 0:00:00]} Rf8 {[%emt 0:00:00]} 24. Qd5+ {[%emt 0:00:24]} Kh8 {[%emt 0:01:24]} 25. Nf7+ {[%emt 0:00:00]} Rxf7 {[%emt 0:00:03]} 26. Qxf7 {[%emt 0:00:00]} Nf6 {[%emt 0:01:57]} 27. Nd5 {[%emt 0:04:34]} Bc6 {[%emt 0:02:45]} 28. Nxf6 {[%emt 0:00:53]} Qxf6 {[%emt 0:00:00]} 29. Qxf6 {[%emt 0:00:12]} gxf6 {[%emt 0:00:00]} 30. Re7 {[%emt 0:00:00]} Kg8 {[%emt 0:00:00]} 31. a5 {[%emt 0:00:08]} h5 {[%emt 0:00:01]} 32. g3 {[%emt 0:00:15]} Bd5 {[%emt 0:00:49]} 33. f4 {[%emt 0:00:00]} Bc6 {[%emt 0:00:26]} 34. Kf2 {[%emt 0:00:00]} Bd5 {[%emt 0:00:00]} 35. Ke3 {[%emt 0:00:00]} Bc6 {[%emt 0:00:00]} 36. b4 {[%emt 0:00:00]} Bd5 {[%emt 0:00:00]} 37. Kd4 {[%emt 0:00:00]} Bc6 {[%emt 0:00:14]} 38. Kc5 {[%emt 0:00:00]} 1-0

[Event "Klatovy Open-C 2024"]
[Site "Klatovy"]
[Date "2024.06.30"]
[Round "2.1"]
[White "Zahorbensky, Jaroslav"]
[Black "Zidu, Jan"]
[Result "1-0"]
[ECO "B51"]
[WhiteElo "2032"]
[BlackElo "1905"]
[Annotator "RC"]
[PlyCount "56"]
[EventDate "2024.06.21"]
[EventType "swiss"]
[EventCountry "CZE"]
[SourceTitle "playchess.com"]
[Source "ChessBase"]
[SourceQuality "1"]
[TimeControl "40/7200:0"]

1. e4 {[%emt 0:00:00]} c5 {[%emt 0:00:00]} 2. Nf3 {[%emt 0:00:00]} d6 {[%emt 0:00:00]} 3. Bb5+ {[%emt 0:00:00]} Nd7 {[%emt 0:00:00]} 4. d4 {[%emt 0:00:00]} cxd4 {[%emt 0:00:00]} 5. Qxd4 {[%emt 0:00:00]} a6 {[%emt 0:00:00]} 6. Bxd7+ {[%emt 0:00:00]} Bxd7 {[%emt 0:00:00]} 7. Nc3 {[%emt 0:00:00]} Nf6 {[%emt 0:00:00]} 8. Bg5 {[%emt 0:00:00]} e6 {[%emt 0:01:13]} 9. O-O-O {[%emt 0:05:05]} Bc6 {[%emt 0:08:20]} 10. Rhe1 {[%emt 0:00:29]} Be7 {[%emt 0:02:27]} 11. Qd2 {[%emt 0:16:07]} Qa5 {[%emt 0:06:03]} 12. Kb1 {[%emt 0:00:35]} O-O {[%emt 0:01:16]} 13. Nd5 {[%emt 0:06:13]} Bd8 {[%emt 0:00:02]} 14. Nxf6+ {[%emt 0:00:55]} gxf6 {[%emt 0:00:00]} 15. Bh6 {[%emt 0:00:00]} Qxd2 {[%emt 0:00:01]} 16. Nxd2 {[%emt 0:04:14]} Re8 {[%emt 0:00:46]} 17. Nc4 {[%emt 0:02:23]} Bc7 {[%emt 0:15:30]} 18. Bf4 {[%emt 0:08:22]} d5 {[%emt 0:15:27]} 19. Bxc7 {[%emt 0:00:00]} dxc4 {[%emt 0:00:00]} 20. Bb6 {[%emt 0:03:22]} e5 {[%emt 0:01:29]} 21. Kc1 {[%emt 0:00:35]} Re6 {[%emt 0:00:01]} 22. Ba5 {[%emt 0:02:15]} b5 {[%emt 0:00:26]} 23. Re3 {[%emt 0:00:20]} Kh8 {[%emt 0:03:25]} 24. Rde1 {[%emt 0:00:23]} Rg8 {[%emt 0:02:29]} 25. g3 {[%emt 0:00:00]} Rb8 {[%emt 0:01:37]} 26. a3 {[%emt 0:00:08]} Rd6 {[%emt 0:01:06]} 27. Bc7 {[%emt 0:00:00]} Re6 {[%emt 0:58:22]} 28. Ba5 {[%emt 1:08:34]} Rb7 1-0

[Event "Klatovy Open-C 2024"]
[Site "Klatovy"]
[Date "2024.06.30"]
[Round "2.2"]
[White "Fiser, Jiri"]
[Black "Chalus, Karel"]
[Result "0-1"]
[ECO "B37"]
[WhiteElo "2134"]
[BlackElo "1982"]
[Annotator "RC"]
[PlyCount "68"]
[EventDate "2024.06.21"]
[EventType "swiss"]
[EventCountry "CZE"]
[SourceTitle "playchess.com"]
[Source "ChessBase"]
[SourceQuality "1"]
[TimeControl "40/7200:0"]

1. e4 {[%emt 0:00:00]} c5 {[%emt 0:00:00]} 2. Nf3 {[%emt 0:00:00]} Nc6 {[%emt 0:00:00]} 3. d4 {[%emt 0:00:00]} cxd4 {[%emt 0:00:00]} 4. Nxd4 {[%emt 0:00:00]} g6 {[%emt 0:00:00]} 5. c4 {[%emt 0:00:00]} Bg7 {[%emt 0:00:00]} 6. Nc2 {[%emt 0:00:00]} Nf6 {[%emt 0:00:00]} 7. Nc3 {[%emt 0:00:00]} O-O {[%emt 0:00:00]} 8. Be2 {[%emt 0:00:00]} d6 {[%emt 0:00:00]} 9. O-O {[%emt 0:00:00]} a5 {[%emt 0:01:31]} 10. Rb1 {[%emt 0:05:52]} Nd7 {[%emt 0:00:16]} 11. Be3 {[%emt 0:05:34]} Nc5 {[%emt 0:04:59]} 12. f3 {[%emt 0:00:58]} Be6 {[%emt 0:06:48]} 13. Qd2 {[%emt 0:03:53]} Re8 {[%emt 0:20:40]} 14. Nd5 {[%emt 0:03:51]} f5 {[%emt 0:05:05]} 15. Nd4 {[%emt 0:07:29]} Bxd5 {[%emt 0:04:59]} 16. exd5 {[%emt 0:12:15]} Nxd4 {[%emt 0:01:15]} 17. Bxd4 {[%emt 0:00:00]} Bxd4+ {[%emt 0:00:00]} 18. Qxd4 {[%emt 0:00:00]} e5 {[%emt 0:00:00]} 19. dxe6 {[%emt 0:00:02]} Rxe6 {[%emt 0:00:00]} 20. Rfe1 {[%emt 0:01:10]} Qe7 {[%emt 0:00:08]} 21. Kf2 {[%emt 0:04:41]} Re8 {[%emt 0:00:33]} 22. Qd2 {[%emt 0:00:00]} f4 {[%emt 0:05:03]} 23. g3 {[%emt 0:06:23]} Qg5 {[%emt 0:04:48]} 24. Rbd1 {[%emt 0:07:43]} fxg3+ {[%emt 0:09:10]} 25. hxg3 {[%emt 0:00:00]} Qf6 {[%emt 0:03:00]} 26. Kg2 {[%emt 0:02:27]} Qe7 {[%emt 0:05:30]} 27. Kf2 {[%emt 0:01:51]} Qf6 {[%emt 0:01:20]} 28. Kg2 {[%emt 0:00:00]} h5 {[%emt 0:03:27]} 29. b3 {[%emt 0:02:20]} Qe7 {[%emt 0:02:06]} 30. Kf2 {[%emt 0:00:05]} h4 {[%emt 0:00:35]} 31. gxh4 {[%emt 0:04:04]} Qxh4+ {[%emt 0:00:53]} 32. Kg2 {[%emt 0:00:00]} Re5 {[%emt 0:01:17]} 33. f4 {[%emt 0:00:15]} Re3 {[%emt 0:01:16]} 34. Qd5+ {[%emt 0:02:31]} Ne6 {[%emt 0:00:36]} 0-1

[Event "Klatovy Open-C 2024"]
[Site "Klatovy"]
[Date "2024.06.30"]
[Round "2.3"]
[White "Mlynek, Petr"]
[Black "Zednik, Zdenek"]
[Result "1/2-1/2"]
[ECO "E11"]
[WhiteElo "1969"]
[BlackElo "1882"]
[Annotator "RC"]
[PlyCount "54"]
[EventDate "2024.06.21"]
[EventType "swiss"]
[EventCountry "CZE"]
[SourceTitle "playchess.com"]
[Source "ChessBase"]
[SourceQuality "1"]
[TimeControl "40/7200:0"]

1. d4 {[%emt 0:00:00]} Nf6 {[%emt 0:02:49]} 2. c4 {[%emt 0:00:00]} e6 {[%emt 0:00:20]} 3. g3 {[%emt 0:00:00]} Bb4+ {[%emt 0:00:58]} 4. Bd2 {[%emt 0:00:00]} Qe7 {[%emt 0:01:04]} 5. a3 {[%emt 0:00:00]} Bxd2+ {[%emt 0:00:00]} 6. Nxd2 {[%emt 0:00:00]} d6 {[%emt 0:00:26]} 7. Ngf3 {[%emt 0:00:00]} O-O {[%emt 0:00:00]} 8. Bg2 {[%emt 0:00:00]} e5 {[%emt 0:01:32]} 9. O-O {[%emt 0:00:00]} e4 {[%emt 0:00:45]} 10. Ng5 {[%emt 0:00:57]} e3 {[%emt 0:01:06]} 11. Nde4 {[%emt 0:00:00]} exf2+ {[%emt 0:00:24]} 12. Nxf2 {[%emt 0:11:24]} Qe3 {[%emt 0:10:32]} 13. Nge4 {[%emt 0:01:09]} Nxe4 {[%emt 0:00:28]} 14. Bxe4 {[%emt 0:00:00]} Nc6 {[%emt 0:00:23]} 15. Bxc6 {[%emt 0:04:12]} bxc6 {[%emt 0:00:00]} 16. Qd3 {[%emt 0:00:00]} Re8 {[%emt 0:03:51]} 17. Rae1 {[%emt 0:00:00]} Rb8 {[%emt 0:06:49]} 18. Qxe3 {[%emt 0:00:00]} Rxe3 {[%emt 0:00:00]} 19. Nd1 {[%emt 0:00:00]} Reb3 {[%emt 0:08:03]} 20. Rf3 {[%emt 0:04:30]} Be6 {[%emt 0:12:06]} 21. c5 {[%emt 0:00:52]} dxc5 {[%emt 0:04:17]} 22. dxc5 {[%emt 0:00:07]} Rd8 {[%emt 0:00:37]} 23. Rxb3 {[%emt 0:02:08]} Bxb3 {[%emt 0:00:00]} 24. Nc3 {[%emt 0:00:00]} Rd2 {[%emt 0:01:22]} 25. Rb1 {[%emt 0:00:00]} Bc2 {[%emt 0:00:12]} 26. Rc1 {[%emt 0:00:14]} Bb3 {[%emt 0:00:24]} 27. Rb1 {[%emt 0:02:09]} Bc2 {[%emt 1:01:32]} 1/2-1/2

[Event "Klatovy Open-C 2024"]
[Site "Klatovy"]
[Date "2024.06.30"]
[Round "2.4"]
[White "Novotny, Jaroslav"]
[Black "Pokora, Lubomir"]
[Result "1/2-1/2"]
[ECO "C41"]
[WhiteElo "2172"]
[BlackElo "1857"]
[Annotator "RC"]
[PlyCount "28"]
[EventDate "2024.06.21"]
[EventType "swiss"]
[EventCountry "CZE"]
[SourceTitle "playchess.com"]
[Source "ChessBase"]
[SourceQuality "1"]
[TimeControl "40/7200:0"]

1. e4 {[%emt 2:00:00]} d6 {[%emt 2:00:00]} 2. d4 {[%emt 0:00:00]} Nf6 {[%emt 0:00:00]} 3. Nc3 {[%emt 0:00:00]} Nbd7 {[%emt 0:00:00]} 4. Nf3 {[%emt 0:00:00]} e5 {[%emt 0:00:00]} 5. Bc4 {[%emt 0:00:00]} Be7 {[%emt 0:00:00]} 6. O-O {[%emt 0:00:00]} O-O {[%emt 0:00:00]} 7. h3 {[%emt 0:00:00]} c6 {[%emt 0:00:00]} 8. a4 {[%emt 0:00:00]} a5 {[%emt 0:00:00]} 9. dxe5 {[%emt 0:00:00]} dxe5 {[%emt 0:00:00]} 10. Qe2 {[%emt 0:00:00]} Qc7 {[%emt 0:00:00]} 11. Bg5 {[%emt 0:00:00]} Nc5 {[%emt 0:00:00]} 12. b3 {[%emt 0:00:00]} Ne6 {[%emt 0:00:00]} 13. Bxe6 {[%emt 0:00:00]} Bxe6 {[%emt 0:00:00]} 14. Rfd1 {[%emt 0:00:00]} Rad8 {[%emt 0:00:00]} 1/2-1/2

[Event "Klatovy Open-C 2024"]
[Site "Klatovy"]
[Date "2024.06.30"]
[Round "2.5"]
[White "Vachal, Josef"]
[Black "Hlavac, Rudolf"]
[Result "0-1"]
[ECO "D76"]
[WhiteElo "2099"]
[BlackElo "1927"]
[Annotator "RC"]
[PlyCount "236"]
[EventDate "2024.06.21"]
[EventType "swiss"]
[EventCountry "CZE"]
[SourceTitle "playchess.com"]
[Source "ChessBase"]
[SourceQuality "1"]
[TimeControl "40/7200:0"]

1. d4 {[%emt 0:00:00]} Nf6 {[%emt 0:00:00]} 2. Nf3 {[%emt 0:00:00]} g6 {[%emt 0:00:00]} 3. c4 {[%emt 0:00:00]} Bg7 {[%emt 0:00:00]} 4. g3 {[%emt 0:00:00]} O-O {[%emt 0:00:00]} 5. Bg2 {[%emt 0:00:00]} d5 {[%emt 0:00:00]} 6. cxd5 {[%emt 0:00:00]} Nxd5 {[%emt 0:00:00]} 7. O-O {[%emt 0:00:00]} Nb6 {[%emt 0:00:00]} 8. Nc3 {[%emt 0:00:26]} Nc6 {[%emt 0:00:00]} 9. e3 {[%emt 0:13:05]} Re8 {[%emt 0:02:41]} 10. Re1 {[%emt 0:10:47]} e5 {[%emt 0:08:24]} 11. d5 {[%emt 0:04:45]} Na5 {[%emt 0:00:16]} 12. e4 {[%emt 0:02:47]} c6 {[%emt 0:00:00]} 13. dxc6 {[%emt 0:16:48]} Nxc6 {[%emt 0:02:05]} 14. b3 {[%emt 0:06:03]} Bg4 {[%emt 0:02:48]} 15. Qxd8 {[%emt 0:18:05]} Raxd8 {[%emt 0:03:07]} 16. h3 {[%emt 0:06:49]} Bxf3 {[%emt 0:09:19]} 17. Bxf3 {[%emt 0:00:00]} Nb4 {[%emt 0:00:23]} 18. Bd1 {[%emt 0:03:06]} Rd3 {[%emt 0:07:09]} 19. Nb5 {[%emt 0:04:12]} a6 {[%emt 0:01:22]} 20. Na3 {[%emt 0:03:34]} Rc8 {[%emt 0:05:55]} 21. Be3 {[%emt 0:00:00]} Rc6 {[%emt 0:00:30]} 22. Be2 {[%emt 0:00:54]} Rd8 {[%emt 0:00:57]} 23. Rac1 {[%emt 0:04:13]} Rdc8 {[%emt 0:02:50]} 24. Rxc6 {[%emt 0:00:45]} Rxc6 {[%emt 0:00:00]} 25. Rd1 {[%emt 0:01:08]} Bf6 {[%emt 0:00:00]} 26. Rd2 {[%emt 0:01:39]} Kf8 {[%emt 0:02:27]} 27. Kg2 {[%emt 0:00:10]} Ke8 {[%emt 0:00:00]} 28. Nb1 {[%emt 0:05:48]} Nd7 {[%emt 0:02:12]} 29. Na3 {[%emt 0:08:52]} b5 {[%emt 0:01:11]} 30. Nxb5 {[%emt 0:01:24]} axb5 {[%emt 0:00:18]} 31. Bxb5 {[%emt 0:00:00]} Rc7 {[%emt 0:00:40]} 32. a3 {[%emt 0:00:00]} Nc6 {[%emt 0:00:10]} 33. Bb6 {[%emt 0:00:00]} Nxb6 {[%emt 0:00:00]} 34. Rd6 {[%emt 0:00:00]} Ke7 {[%emt 0:00:51]} 35. Rxc6 {[%emt 0:00:00]} Rxc6 {[%emt 0:00:00]} 36. Bxc6 {[%emt 0:00:00]} Bg5 {[%emt 0:00:36]} 37. Kf3 {[%emt 0:00:00]} Bc1 {[%emt 0:00:13]} 38. a4 {[%emt 0:00:00]} Bd2 {[%emt 0:00:00]} 39. Ke2 {[%emt 0:00:00]} Bb4 {[%emt 0:00:00]} 40. f4 {[%emt 0:00:00]} f6 {[%emt 0:00:38]} 41. Kf3 {[%emt 1:58:55]} Nd7 {[%emt 2:00:53]} 42. h4 {[%emt 0:00:52]} h6 {[%emt 0:00:35]} 43. Bb5 {[%emt 0:01:40]} Nc5 {[%emt 0:01:30]} 44. Bc4 {[%emt 0:00:00]} Ne6 {[%emt 0:00:00]} 45. Ke3 {[%emt 0:01:18]} Nc5 {[%emt 0:04:07]} 46. Bd5 {[%emt 0:00:32]} g5 {[%emt 0:02:47]} 47. hxg5 {[%emt 0:00:00]} hxg5 {[%emt 0:00:00]} 48. fxg5 {[%emt 0:00:01]} fxg5 {[%emt 0:00:00]} 49. Kf3 {[%emt 0:00:09]} Nd7 {[%emt 0:03:24]} 50. Bc4 {[%emt 0:00:00]} Kd6 {[%emt 0:00:57]} 51. Kg4 {[%emt 0:00:00]} Bd2 {[%emt 0:00:32]} 52. Kf5 {[%emt 0:00:00]} Nc5 {[%emt 0:02:04]} 53. Bd5 {[%emt 0:00:00]} Nd3 {[%emt 0:00:36]} 54. Bc4 {[%emt 0:00:00]} Nf2 {[%emt 0:00:12]} 55. Bd5 {[%emt 0:00:00]} Nd1 {[%emt 0:00:18]} 56. Kf6 {[%emt 0:00:00]} Ne3 {[%emt 0:01:37]} 57. Bg8 {[%emt 0:00:00]} Ng4+ {[%emt 0:05:25]} 58. Kg6 {[%emt 0:00:00]} Kc5 {[%emt 0:00:07]} 59. Bc4 {[%emt 0:00:00]} Kd4 {[%emt 0:04:17]} 60. Bd5 {[%emt 0:00:00]} Ne3 {[%emt 0:00:51]} 61. Bb7 {[%emt 0:00:00]} Nf1 {[%emt 0:00:03]} 62. g4 {[%emt 0:00:04]} Ng3 {[%emt 0:00:00]} 63. a5 {[%emt 0:00:02]} Bxa5 {[%emt 0:04:05]} 64. Kxg5 {[%emt 0:00:00]} Nxe4+ {[%emt 0:00:00]} 65. Kh5 {[%emt 0:00:11]} Bd2 {[%emt 0:01:20]} 66. Bc8 {[%emt 0:00:05]} Nd6 {[%emt 0:00:33]} 67. Be6 {[%emt 0:00:00]} e4 {[%emt 0:00:00]} 68. g5 {[%emt 0:00:00]} Ke5 {[%emt 0:00:07]} 69. Bg4 {[%emt 0:00:00]} Kf4 {[%emt 0:08:17]} 70. g6 {[%emt 0:00:00]} Bc3 {[%emt 0:00:02]} 71. Be2 {[%emt 0:00:16]} Nf5 {[%emt 0:00:51]} 72. Ba6 {[%emt 0:00:00]} e3 {[%emt 0:01:25]} 73. Bd3 {[%emt 0:00:00]} Bg7 {[%emt 0:02:18]} 74. b4 {[%emt 0:00:00]} e2 {[%emt 0:01:19]} 75. Bxe2 {[%emt 0:00:00]} Ng3+ {[%emt 0:00:00]} 76. Kh4 {[%emt 0:00:00]} Nxe2 {[%emt 0:00:00]} 77. b5 {[%emt 0:00:00]} Nd4 {[%emt 0:00:00]} 78. b6 {[%emt 0:00:00]} Kf5 {[%emt 0:00:00]} 79. Kg3 {[%emt 0:00:00]} Be5+ {[%emt 0:00:00]} 80. Kf2 {[%emt 0:00:00]} Kxg6 {[%emt 0:00:00]} 81. Ke3 {[%emt 1:57:59]} Kf5 {[%emt 2:00:07]} 82. Kd3 {[%emt 0:00:00]} Ke6 {[%emt 0:00:30]} 83. Kc4 {[%emt 0:00:00]} Nc6 {[%emt 0:00:00]} 84. Kc5 {[%emt 0:00:00]} Kd7 {[%emt 0:00:00]} 85. Kd5 {[%emt 0:00:00]} Bg3 {[%emt 0:00:00]} 86. Kc5 {[%emt 0:00:00]} Bf2+ {[%emt 0:00:00]} 87. Kb5 {[%emt 0:00:00]} Nb8 {[%emt 0:00:00]} 88. Kc4 {[%emt 0:00:00]} Bxb6 {[%emt 0:00:00]} 89. Kd5 {[%emt 0:00:00]} Nc6 {[%emt 0:00:00]} 90. Ke4 {[%emt 0:00:00]} Ke6 {[%emt 0:00:00]} 91. Kf4 {[%emt 0:00:00]} Ne5 {[%emt 0:00:00]} 92. Ke4 {[%emt 0:00:00]} Ng6 {[%emt 0:00:41]} 93. Kf3 {[%emt 0:00:00]} Kf5 {[%emt 0:00:00]} 94. Kg3 {[%emt 0:00:00]} Ne5 {[%emt 0:00:00]} 95. Kh4 {[%emt 0:00:00]} Bf2+ {[%emt 0:00:01]} 96. Kh3 {[%emt 0:00:00]} Kf4 {[%emt 0:00:15]} 97. Kg2 {[%emt 0:00:00]} Bc5 {[%emt 0:01:08]} 98. Kh3 {[%emt 0:00:00]} Ng4 {[%emt 0:02:24]} 99. Kg2 {[%emt 0:00:00]} Nf6 {[%emt 0:00:03]} 100. Kh3 {[%emt 0:00:00]} Ne4 {[%emt 0:00:00]} 101. Kg2 {[%emt 0:00:00]} Ng3 {[%emt 0:00:11]} 102. Kh3 {[%emt 0:00:00]} Kf3 {[%emt 0:00:00]} 103. Kh2 {[%emt 0:00:00]} Bd4 {[%emt 0:00:00]} 104. Kh3 {[%emt 0:00:00]} Bg1 {[%emt 0:00:00]} 105. Kh4 {[%emt 0:00:00]} Ne4 {[%emt 0:00:00]} 106. Kh3 {[%emt 0:00:00]} Ng5+ {[%emt 0:00:00]} 107. Kh4 {[%emt 0:00:00]} Kf4 {[%emt 0:00:00]} 108. Kh5 {[%emt 0:00:00]} Kf5 {[%emt 0:00:00]} 109. Kh4 {[%emt 0:00:00]} Bf2+ {[%emt 0:00:00]} 110. Kh5 {[%emt 0:00:00]} Ne6 {[%emt 0:00:00]} 111. Kh6 {[%emt 0:00:00]} Bg3 {[%emt 0:00:00]} 112. Kh5 {[%emt 0:00:00]} Ng7+ {[%emt 0:00:00]} 113. Kh6 {[%emt 0:00:00]} Kf6 {[%emt 0:00:00]} 114. Kh7 {[%emt 0:00:00]} Kf7 {[%emt 0:00:00]} 115. Kh8 {[%emt 0:00:00]} Bf4 {[%emt 0:00:00]} 116. Kh7 {[%emt 0:00:00]} Ne6 {[%emt 0:00:00]} 117. Kh8 {[%emt 0:00:00]} Be3 {[%emt 0:00:00]} 118. Kh7 {[%emt 0:00:00]} Nf8+ {[%emt 0:00:00]} 0-1

[Event "Klatovy Open-C 2024"]
[Site "Klatovy"]
[Date "2024.06.30"]
[Round "2.7"]
[White "Havelka, Petr"]
[Black "Korsa, Jindrich"]
[Result "1/2-1/2"]
[ECO "D55"]
[WhiteElo "1851"]
[BlackElo "2036"]
[Annotator "RC"]
[PlyCount "115"]
[EventDate "2024.06.21"]
[EventType "swiss"]
[EventCountry "CZE"]
[SourceTitle "playchess.com"]
[Source "ChessBase"]
[SourceQuality "1"]
[TimeControl "40/7200:0"]

1. d4 {[%emt 0:00:00]} Nf6 {[%emt 0:00:00]} 2. c4 {[%emt 0:00:00]} e6 {[%emt 0:00:00]} 3. Nc3 {[%emt 0:00:00]} d5 {[%emt 0:00:00]} 4. Bg5 {[%emt 0:00:41]} Be7 {[%emt 0:00:00]} 5. e3 {[%emt 0:00:09]} O-O {[%emt 0:01:06]} 6. Nf3 {[%emt 0:00:38]} b6 {[%emt 0:05:48]} 7. Be2 {[%emt 0:01:52]} Bb7 {[%emt 0:01:09]} 8. O-O {[%emt 0:02:40]} Nbd7 {[%emt 0:01:52]} 9. Rc1 {[%emt 0:04:27]} h6 {[%emt 0:05:09]} 10. Bh4 {[%emt 0:01:14]} Ne4 {[%emt 0:09:16]} 11. Bxe7 {[%emt 0:03:39]} Qxe7 {[%emt 0:00:00]} 12. Nd2 {[%emt 0:09:45]} c5 {[%emt 0:14:45]} 13. Ndxe4 {[%emt 0:18:43]} dxe4 {[%emt 0:00:00]} 14. d5 {[%emt 0:04:24]} exd5 {[%emt 0:03:57]} 15. Nxd5 {[%emt 0:01:09]} Bxd5 {[%emt 0:00:00]} 16. Qxd5 {[%emt 0:00:55]} Nf6 {[%emt 0:00:00]} 17. Qc6 {[%emt 0:04:20]} Rad8 {[%emt 0:04:32]} 18. Rfd1 {[%emt 0:00:04]} Rd7 {[%emt 0:06:41]} 19. Rxd7 {[%emt 0:01:03]} Qxd7 {[%emt 0:01:21]} 20. Qxd7 {[%emt 0:00:00]} Nxd7 {[%emt 0:00:00]} 21. Rd1 {[%emt 0:00:00]} Nf6 {[%emt 0:00:42]} 22. Kf1 {[%emt 0:00:17]} Rc8 {[%emt 0:00:47]} 23. h3 {[%emt 0:03:32]} Kf8 {[%emt 0:01:34]} 24. Rd2 {[%emt 0:01:51]} Ke7 {[%emt 0:00:00]} 25. Ke1 {[%emt 0:00:35]} Rc6 {[%emt 0:00:00]} 26. Bd1 {[%emt 0:00:06]} Rd6 {[%emt 0:03:52]} 27. Bc2 {[%emt 0:03:02]} h5 {[%emt 0:02:10]} 28. g3 {[%emt 0:01:48]} Ke6 {[%emt 0:00:00]} 29. Rxd6+ {[%emt 0:02:14]} Kxd6 {[%emt 0:00:00]} 30. Bd1 {[%emt 0:00:00]} g5 {[%emt 0:00:54]} 31. g4 {[%emt 0:02:50]} h4 {[%emt 0:00:24]} 32. Bc2 {[%emt 0:05:20]} Ke5 {[%emt 0:00:00]} 33. Ke2 {[%emt 0:00:59]} Ne8 {[%emt 0:02:16]} 34. f3 {[%emt 0:02:01]} exf3+ {[%emt 0:00:00]} 35. Kxf3 {[%emt 0:00:00]} Nd6 {[%emt 0:00:00]} 36. Bd3 {[%emt 0:01:06]} Ke6 {[%emt 0:07:55]} 37. b3 {[%emt 0:02:07]} f6 {[%emt 0:00:23]} 38. a4 {[%emt 0:01:36]} Ke5 {[%emt 0:00:30]} 39. Bc2 {[%emt 0:00:28]} Nb7 {[%emt 0:00:03]} 40. Bd3 {[%emt 0:00:33]} Na5 {[%emt 0:00:00]} 41. Bc2 {[%emt 1:59:44]} Nc6 {[%emt 1:59:35]} 42. Bf5 {[%emt 0:01:57]} Na5 {[%emt 0:02:04]} 43. Bc2 {[%emt 0:00:00]} a6 {[%emt 0:00:00]} 44. Ke2 {[%emt 0:00:00]} Nb7 {[%emt 0:00:51]} 45. Kf3 {[%emt 0:00:00]} Nd6 {[%emt 0:00:00]} 46. Bd3 {[%emt 0:00:00]} Ke6 {[%emt 0:00:00]} 47. Bc2 {[%emt 0:03:06]} Kd7 {[%emt 0:00:52]} 48. Bd3 {[%emt 0:00:04]} Kc6 {[%emt 0:00:24]} 49. Be4+ {[%emt 0:00:06]} Kd7 {[%emt 0:00:42]} 50. Bd3 {[%emt 0:00:00]} Ke6 {[%emt 0:01:26]} 51. Bc2 {[%emt 0:01:20]} Nf7 {[%emt 0:00:00]} 52. Bf5+ {[%emt 0:00:41]} Kd6 {[%emt 0:00:22]} 53. Bc2 {[%emt 0:01:00]} Ke5 {[%emt 0:00:05]} 54. Bg6 {[%emt 0:00:34]} Nd6 {[%emt 0:00:00]} 55. Bd3 {[%emt 0:00:00]} Ke6 {[%emt 0:01:00]} 56. Ke2 {[%emt 0:25:20]} Ke5 {[%emt 0:35:33]} 57. Kf3 {[%emt 0:00:00]} b5 {[%emt 0:00:00]} 58. Bc2 1/2-1/2

[Event "Klatovy Open-C 2024"]
[Site "Klatovy"]
[Date "2024.06.30"]
[Round "2.8"]
[White "Kopta, Pavel"]
[Black "Navratilova, Alena"]
[Result "1-0"]
[ECO "D82"]
[WhiteElo "2193"]
[BlackElo "1729"]
[Annotator "RC"]
[PlyCount "45"]
[EventDate "2024.06.21"]
[EventType "swiss"]
[EventCountry "CZE"]
[SourceTitle "playchess.com"]
[Source "ChessBase"]
[SourceQuality "1"]
[TimeControl "40/7200:0"]

1. d4 {[%emt 0:00:00]} Nf6 {[%emt 0:00:00]} 2. c4 {[%emt 0:00:00]} g6 {[%emt 0:00:00]} 3. Nc3 {[%emt 0:00:00]} d5 {[%emt 0:00:00]} 4. Bf4 {[%emt 0:00:00]} c6 {[%emt 0:00:33]} 5. e3 {[%emt 0:00:00]} Bg7 {[%emt 0:00:00]} 6. Rc1 {[%emt 0:00:00]} Bf5 {[%emt 0:01:12]} 7. Qb3 {[%emt 0:05:13]} Bc8 {[%emt 0:09:01]} 8. Nf3 {[%emt 0:12:05]} O-O {[%emt 0:01:17]} 9. Be2 {[%emt 0:00:00]} e6 {[%emt 0:00:55]} 10. O-O {[%emt 0:00:24]} Nbd7 {[%emt 0:00:58]} 11. Nd2 {[%emt 0:03:01]} Qb6 {[%emt 0:03:57]} 12. Qc2 {[%emt 0:01:20]} Re8 {[%emt 0:00:58]} 13. Rfd1 {[%emt 0:01:05]} a6 {[%emt 0:01:23]} 14. Bf3 {[%emt 0:01:35]} Qd8 {[%emt 0:01:53]} 15. e4 {[%emt 0:02:07]} dxe4 {[%emt 0:01:46]} 16. Ndxe4 {[%emt 0:00:48]} Nxe4 {[%emt 0:00:23]} 17. Nxe4 {[%emt 0:00:00]} h6 {[%emt 0:03:29]} 18. Nd6 {[%emt 0:06:37]} Rf8 {[%emt 0:01:12]} 19. Bg3 {[%emt 0:03:29]} Nf6 {[%emt 0:03:38]} 20. Qb3 {[%emt 0:01:43]} Qd7 {[%emt 0:01:27]} 21. c5 {[%emt 0:08:30]} Ne8 {[%emt 0:02:49]} 22. Nc4 {[%emt 0:00:48]} Ra7 {[%emt 0:05:40]} 23. Nb6 {[%emt 0:00:10]} 1-0